bitfinex/quotes_SOLUSD_20241008
["timestamp","ask_amount","ask_price","bid_price","bid_amount"]
[1728403236776,7.0051,142.76,142.71,7.13229]
[1728403237190,1.39908322,142.78,142.71,7.13229]
[1728403237191,7.0053,142.75,142.71,7.13229]
[1728403237493,1.39908322,142.78,142.71,7.13229]
[1728403237801,7.0053,142.75,142.71,7.13229]
[1728403238004,1.39908322,142.8,142.73,0.12549]
[1728403238294,1.39908322,142.8,142.72,22.4174]
[1728403238676,1.39908322,142.8,142.72,29.4237]
[1728403239091,7.0054,142.75,142.72,22.4174]
[1728403239472,1.39908322,142.79,142.68,0.8443328]
[1728403239678,7.0076,142.71,142.68,0.8443328]
[1728403240273,1.39908322,142.75,142.68,0.8443328]
[1728403240480,17.5155,142.74,142.68,0.8443328]
[1728403240673,1.39908322,142.73,142.68,0.8443328]
[1728403240996,7.0078,142.7,142.68,0.8443328]
[1728403241195,1.39908322,142.73,142.68,0.8443328]
[1728403241703,7.0077,142.7,142.68,0.8443328]
[1728403242678,7.0081,142.69,142.68,0.8443328]
[1728403243705,1.39908322,142.71,142.68,0.8443328]
[1728403243706,7.0074,142.71,142.68,0.8443328]
[1728403244002,7.0067,142.72,142.68,0.8443328]
[1728403244589,7.0067,142.72,142.68,23.4142328]
[1728403244787,18.90898322,142.78,142.69,1.52683392]
[1728403245108,7.0056,142.75,142.7,7.0077]
[1728403245277,1.39908322,142.78,142.72,7.0066]
[1728403245478,7.0032,142.79,142.73,1.40093616]
[1728403245691,7.0039,142.78,142.74,7.0052]
[1728403248526,7.0039,142.78,142.74,13.0864]
[1728403248873,7.0034,142.79,142.74,22.0899]
[1728403249082,7.0023,142.81,142.77,7.0042]
[1728403249280,7.0023,142.81,142.76,7.25558]
[1728403252816,1.39908322,142.83,142.77,17.51]
[1728403253122,7.0024,142.81,142.77,17.51]
[1728403256904,7.0024,142.81,142.77,17.51]
[1728403258111,7.0034,142.79,142.75,7.0051]
[1728403258301,7.0034,142.79,142.75,0.25098]
[1728403259016,7.0038,142.78,142.75,0.12549]
[1728403259397,7.0038,142.78,142.75,0.25098]
[1728403259901,7.0048,142.76,142.74,22.0899]
[1728403260115,7.0052,142.75,142.74,22.0899]
[1728403260415,7.0049,142.76,142.74,22.0899]
[1728403261116,0.12549,142.79,142.7,22.4815]
[1728403261325,7.0072,142.71,142.7,22.4815]
[1728403261619,7.0077,142.7,142.68,0.8443328]
[1728403262715,1.39908322,142.74,142.68,0.8443328]
[1728403262918,7.0063,142.73,142.69,0.12549]
[1728403263324,7.0058,142.74,142.69,17.77088]
[1728403263615,7.0058,142.74,142.69,24.77888]
[1728403264192,1.39908322,142.77,142.69,24.77888]
[1728403264416,7.0062,142.73,142.69,24.65339]
[1728403264608,1.39908322,142.77,142.69,17.64539]
[1728403264795,7.0052,142.76,142.71,7.0068]
[1728403265297,7.0053,142.75,142.71,7.0068]
[1728403266120,7.0053,142.75,142.7,7.13279]
[1728403266418,7.0053,142.75,142.71,7.0071]
[1728403266903,7.0057,142.74,142.7,7.13299]
[1728403270914,7.0048,142.76,142.72,7.0064]
[1728403271103,7.0048,142.76,142.72,28.4288]
[1728403271603,7.0044,142.77,142.73,7.0061]
[1728403271801,7.24589545,142.83,142.75,0.12549]
[1728403271998,7.0033,142.79,142.75,24.64289]
[1728403272803,7.0048,142.76,142.72,45.9447]
[1728403273122,7.0046,142.77,142.73,7.13159]
[1728403274225,7.0039,142.78,142.74,7.0057]
[1728403274425,7.24589545,142.87,142.75,1.6517379]
[1728403274426,18.90318322,142.83,142.75,1.6517379]
[1728403274727,7.24589545,142.87,142.75,1.6517379]
[1728403274728,7.002,142.82,142.78,7.12919]
[1728403274929,18.89958322,142.86,142.79,7.0029]
[1728403275131,18.89958322,142.86,142.75,17.5121]
[1728403275132,17.5032,142.84,142.75,17.5121]
[1728403275316,7.0037,142.79,142.75,24.517]
[1728403275822,1.39908322,142.83,142.76,0.25098]
[1728403276032,7.0019,142.82,142.78,7.0037]
[1728403276223,18.89828322,142.87,142.76,0.25098]
[1728403276521,7.0016,142.83,142.79,24.5109]
[1728403277527,7.0016,142.83,142.79,17.5078]
[1728403279510,7.0019,142.82,142.79,17.5078]
[1728403280823,7.0008,142.85,142.8,8.52838439]
[1728403281008,7.0008,142.85,142.81,7.0021]
[1728403281210,7.0008,142.85,142.82,1.40016529]
[1728403281733,7.0008,142.85,142.81,7.0021]
[1728403281903,7.0008,142.85,142.82,1.40011154]
[1728403283454,7.0008,142.85,142.8,1.52560493]
[1728403283608,7.0,142.86,142.81,17.63079]
[1728403283929,7.0,142.86,142.82,0.12549]
[1728403284820,1.39908322,142.89,142.82,0.12549]
[1728403285026,7.0018,142.83,142.78,24.76318]
[1728403285328,7.0033,142.79,142.77,21.5687]
[1728403285520,1.39908322,142.82,142.77,21.5687]
[1728403285721,7.0029,142.8,142.77,21.5687]
[1728403287245,7.0041,142.78,142.74,7.0054]
[1728403287532,1.39908322,142.87,142.84,7.0008]
[1728403287736,8.39828322,142.88,142.82,24.5053]
[1728403287934,1.21871775,142.95,142.83,1.39997604]
[1728403287935,17.4919,142.93,142.83,1.39997604]
[1728403288111,6.9995,142.87,142.83,1.39997604]
[1728403288311,18.89348322,142.91,142.82,0.12549]
[1728403288833,7.0,142.86,142.81,17.505]
[1728403289022,18.89348322,142.91,142.81,24.5072]
[1728403289218,6.9994,142.87,142.81,24.5072]
[1728403290330,6.9994,142.87,142.82,8.52736566]
[1728403290515,6.9994,142.87,142.82,7.12729]
[1728403291135,6.9989,142.88,142.82,7.12729]
[1728403291726,6.9989,142.88,142.83,7.0012]
[1728403293723,6.9989,142.88,142.84,7.0008]
[1728403294827,1.39908322,142.87,142.78,39.5082]
[1728403295024,1.39908322,142.86,142.78,21.9996]
[1728403295211,7.0029,142.8,142.78,21.9996]
[1728403295416,17.5005,142.86,142.78,21.9996]
[1728403295632,7.0014,142.83,142.78,21.9996]
[1728403295819,7.0014,142.83,142.78,29.0032]
[1728403296637,7.0019,142.82,142.78,29.0032]
[1728403297022,7.0019,142.82,142.78,21.9996]
[1728403297342,7.0031,142.8,142.75,7.005]
[1728403298037,7.0033,142.79,142.75,7.005]
[1728403298241,8.40238322,142.79,142.74,24.5191]
[1728403298430,7.0033,142.79,142.74,24.5191]
[1728403298632,7.0033,142.79,142.75,7.0052]
[1728403299334,1.39908322,142.83,142.75,0.12549]
[1728403299524,7.0024,142.81,142.76,7.0044]
[1728403300630,1.39908322,142.87,142.77,1.40061584]
[1728403300954,7.0019,142.82,142.78,7.0037]
[1728403301325,1.39908322,142.87,142.79,7.0032]
[1728403301520,7.0011,142.84,142.8,7.0026]
[1728403302215,7.0003,142.85,142.8,7.0026]
[1728403303153,7.0003,142.85,142.79,40.1044]
[1728403303154,7.0008,142.84,142.79,47.1075]
[1728403303445,7.0015,142.83,142.79,47.1075]
[1728403303744,1.39908322,142.86,142.79,40.1044]
[1728403303948,0.12549,142.85,142.76,23.037]
[1728403304153,7.0042,142.77,142.73,17.5145]
[1728403304452,41.76989549,142.89,142.72,23.037]
[1728403304453,7.0056,142.75,142.72,23.037]
[1728403304744,7.0062,142.73,142.69,7.008]
[1728403304946,1.39908322,142.77,142.68,0.8443328]
[1728403305238,17.5126,142.76,142.68,0.8443328]
[1728403305552,1.39908322,142.75,142.68,0.8443328]
[1728403305856,7.0068,142.72,142.68,0.8443328]
[1728403306232,7.0063,142.73,142.68,7.8526328]
[1728403306434,7.0057,142.74,142.68,18.3654328]
[1728403306823,1.39908322,142.78,142.7,17.5187]
[1728403307028,7.0051,142.76,142.7,24.5262]
[1728403307231,1.39908322,142.75,142.7,17.5187]
[1728403307432,7.0047,142.76,142.71,7.0071]
[1728403308955,1.39908322,142.75,142.71,7.0071]
[1728403309139,7.0047,142.76,142.71,7.0071]
[1728403309653,8.40468322,142.75,142.7,24.5263]
[1728403309959,0.12549,142.74,142.68,0.8443328]
[1728403310133,7.0073,142.71,142.68,0.8443328]
[1728403310328,7.0067,142.72,142.68,0.8443328]
[1728403310855,8.40628322,142.71,142.68,0.8443328]
[1728403311057,7.0081,142.69,142.68,0.8443328]
[1728403311259,7.0078,142.7,142.68,0.8443328]
[1728403311426,1.39908322,142.69,142.68,0.8443328]
[1728403311631,7.0081,142.69,142.68,0.8443328]
[1728403314332,7.0078,142.7,142.68,0.8443328]
[1728403314654,7.0072,142.71,142.68,0.8443328]
[1728403314839,1.39908322,142.7,142.68,0.8443328]
[1728403315039,8.40678322,142.7,142.68,0.8443328]
[1728403315533,1.39908322,142.7,142.68,0.8443328]
[1728403316464,8.40698322,142.7,142.68,0.8443328]
[1728403317133,7.0079,142.7,142.68,0.8443328]
[1728403317758,7.0073,142.71,142.68,0.8443328]
[1728403317949,1.39908322,142.7,142.68,0.8443328]
[1728403318536,7.0081,142.69,142.68,0.8443328]
[1728403319839,1.39908322,142.71,142.68,0.8443328]
[1728403320047,7.0081,142.7,142.68,0.8443328]
[1728403320259,1.39908322,142.69,142.68,0.8443328]
[1728403320470,7.0081,142.69,142.68,0.8443328]
[1728403321467,1.39908322,142.71,142.68,0.8443328]
[1728403321638,17.514,142.75,142.68,0.8443328]
[1728403321639,1.52457322,142.74,142.68,0.8443328]
[1728403322041,7.0081,142.69,142.68,0.8443328]
[1728403324449,7.0081,142.69,142.68,0.8443328]
[1728403326436,7.0078,142.7,142.68,0.8443328]
[1728403326667,8.40718322,142.69,142.68,0.8443328]
[1728403326970,1.39908322,142.69,142.68,0.8443328]
[1728403327172,7.0081,142.69,142.68,0.8443328]
[1728403327338,1.39908322,142.72,142.68,0.8443328]
[1728403327541,7.0081,142.69,142.68,0.8443328]
[1728403327769,1.39908322,142.72,142.68,0.8443328]
[1728403328241,7.0069,142.72,142.68,7.8527328]
[1728403328437,7.0063,142.73,142.69,7.0081]
[1728403328637,1.39908322,142.72,142.69,7.0081]
[1728403328862,8.40578322,142.72,142.68,25.3743328]
[1728403330046,1.39908322,142.72,142.68,0.8443328]
[1728403330252,1.39908322,142.71,142.68,0.8443328]
[1728403330466,0.12549,142.73,142.68,0.8443328]
[1728403330467,7.0081,142.69,142.68,0.8443328]
[1728403331245,1.39908322,142.71,142.68,0.8443328]
[1728403331573,7.0073,142.71,142.68,0.8443328]
[1728403331749,1.39908322,142.7,142.68,0.8443328]
[1728403331951,7.008,142.7,142.68,0.8443328]
[1728403332167,8.40718322,142.69,142.68,0.8443328]
[1728403335077,8.53267322,142.69,142.68,0.8443328]
[1728403336055,7.0111,142.63,142.6,17.5306]
[1728403337284,8.41068322,142.62,142.59,21.692]
[1728403337864,7.0126,142.6,142.59,21.692]
[1728403338359,7.0122,142.61,142.59,21.692]
[1728403338685,1.39908322,142.6,142.59,21.692]
[1728403338889,8.41168322,142.6,142.57,17.5341]
[1728403340291,1.39908322,142.6,142.57,17.5341]
[1728403341567,7.0134,142.59,142.55,28.489]
[1728403341884,8.41268322,142.58,142.55,21.474]
[1728403342191,7.0145,142.56,142.54,0.8443328]
[1728403342489,8.41408322,142.55,142.54,0.8443328]
[1728403345362,8.53957322,142.55,142.54,0.8443328]
[1728403347168,8.41408322,142.55,142.54,0.8443328]
[1728403347380,1.39908322,142.55,142.54,0.8443328]
[1728403347573,7.0146,142.56,142.54,0.8443328]
[1728403347772,1.39908322,142.55,142.54,0.8443328]
[1728403347983,7.0146,142.56,142.54,0.8443328]
[1728403347984,1.39908322,142.56,142.54,0.8443328]
[1728403348281,7.0166,142.52,142.47,7.0188]
[1728403348489,7.0161,142.53,142.48,7.0184]
[1728403348788,7.0161,142.53,142.46,17.5483]
[1728403348789,7.0161,142.53,142.49,7.018]
[1728403349159,7.0161,142.53,142.47,1.40350801]
[1728403349365,7.0156,142.54,142.48,18.94923941]
[1728403349676,8.41378322,142.56,142.5,17.66889]
[1728403349873,7.0157,142.54,142.5,17.5434]
[1728403350493,1.39908322,142.57,142.5,1.40328382]
[1728403350790,7.0151,142.55,142.51,24.5591]
[1728403351165,7.0146,142.56,142.52,7.0163]
[1728403351374,1.39908322,142.55,142.51,24.5591]
[1728403351693,17.5332,142.59,142.49,21.5223]
[1728403351895,7.0157,142.54,142.5,7.0175]
[1728403352390,7.0157,142.54,142.49,21.5223]
[1728403352575,7.0171,142.51,142.49,21.5223]
[1728403352775,7.0166,142.52,142.49,21.5223]
[1728403352995,8.41608322,142.51,142.49,21.5223]
[1728403353166,7.0175,142.5,142.49,21.5223]
[1728403353362,7.0186,142.48,142.45,22.5456]
[1728403353793,1.39908322,142.52,142.45,22.5456]
[1728403353966,7.017,142.51,142.46,24.5675]
[1728403354172,1.39908322,142.5,142.46,24.5675]
[1728403354374,8.41708322,142.5,142.46,17.5481]
[1728403355194,7.0181,142.49,142.46,17.5481]
[1728403355693,7.0181,142.49,142.45,29.5655]
[1728403356388,7.0181,142.49,142.45,22.5456]
[1728403356578,7.0181,142.49,142.45,29.5655]
[1728403357289,1.39908322,142.48,142.4,17.5552]
[1728403357496,17.5434,142.51,142.41,7.0218]
[1728403357667,0.12549,142.49,142.41,7.0218]
[1728403357869,1.39908322,142.48,142.41,7.0218]
[1728403358069,7.0203,142.45,142.41,7.0218]
[1728403358291,1.39908322,142.48,142.39,0.8443328]
[1728403358482,7.0191,142.47,142.44,17.5506]
[1728403358677,7.0189,142.48,142.44,17.5506]
[1728403358873,1.39908322,142.47,142.44,17.5506]
[1728403359076,7.0189,142.48,142.44,17.5506]
[1728403359295,7.0189,142.48,142.44,24.571]
[1728403359677,8.41818322,142.47,142.43,7.0208]
[1728403359880,1.39908322,142.47,142.41,0.25098]
[1728403360195,7.0186,142.48,142.43,24.5725]
[1728403360384,1.39908322,142.47,142.43,24.5725]
[1728403360590,1.39908322,142.47,142.43,24.5729]
[1728403360591,7.019,142.47,142.43,24.5729]
[1728403360994,7.0186,142.48,142.44,29.5375]
[1728403361593,7.0186,142.48,142.44,22.5171]
[1728403361899,7.0186,142.48,142.44,29.5375]
[1728403362281,8.41818322,142.47,142.44,22.5171]
[1728403362482,7.0186,142.48,142.44,29.5375]
[1728403362684,7.0182,142.49,142.45,8.4235822]
[1728403362893,7.0182,142.49,142.45,7.0198]
[1728403363096,1.39908322,142.51,142.44,22.5171]
[1728403363282,7.0176,142.5,142.46,7.0194]
[1728403363485,8.41718322,142.49,142.45,24.5697]
[1728403364497,7.0181,142.49,142.45,24.5697]
[1728403364673,1.39908322,142.51,142.45,17.5498]
[1728403364884,7.0172,142.51,142.47,7.0186]
[1728403365076,7.0175,142.5,142.46,7.0193]
[1728403366798,1.39908322,142.54,142.45,17.5498]
[1728403366987,7.0172,142.51,142.47,7.0189]
[1728403367697,7.017,142.51,142.48,7.0184]
[1728403367900,1.39908322,142.54,142.45,0.12549]
[1728403368073,7.0157,142.54,142.5,7.0174]
[1728403368274,7.0157,142.54,142.5,8.4206851]
[1728403368490,1.39908322,142.57,142.49,17.5448]
[1728403368693,7.0161,142.53,142.49,24.5626]
[1728403369597,7.0157,142.54,142.5,7.0174]
[1728403370102,7.0152,142.55,142.51,7.0169]
[1728403370310,7.0152,142.55,142.51,8.42013608]
[1728403370478,8.41468322,142.54,142.5,29.4784]
[1728403370680,7.0156,142.54,142.5,29.4784]
[1728403371207,1.39908322,142.53,142.5,22.4612]
[1728403371502,1.39908322,142.55,142.48,7.0183]
[1728403371713,10.03234524,142.55,142.47,22.4651]
[1728403372087,17.5392,142.54,142.47,22.4651]
[1728403372311,7.0181,142.49,142.47,22.4651]
[1728403373209,7.0185,142.48,142.43,17.5515]
[1728403373403,7.0191,142.47,142.44,22.4651]
[1728403373594,7.0195,142.46,142.44,22.4651]
[1728403373990,7.0192,142.47,142.44,22.4651]
[1728403374305,1.39908322,142.49,142.44,22.4651]
[1728403374306,7.0195,142.46,142.44,22.4651]
[1728403375096,1.39908322,142.49,142.44,22.4651]
[1728403375301,7.02,142.45,142.4,40.6822]
[1728403375613,7.0207,142.44,142.4,47.1507]
[1728403376003,1.39908322,142.47,142.4,47.1507]
[1728403376004,7.0201,142.45,142.4,47.1507]
[1728403376594,1.39908322,142.47,142.4,47.1507]
[1728403376784,7.0208,142.44,142.4,47.1507]
[1728403379315,7.0209,142.43,142.4,40.1285]
[1728403379515,1.39908322,142.47,142.4,22.5731]
[1728403379516,7.0215,142.42,142.4,22.5731]
[1728403379727,17.5489,142.46,142.4,22.5731]
[1728403379728,1.39908322,142.45,142.4,22.5731]
[1728403380014,7.0209,142.43,142.4,22.5731]
[1728403380209,1.39908322,142.42,142.39,0.8443328]
[1728403380419,7.0223,142.41,142.39,0.8443328]
[1728403380783,7.0214,142.43,142.39,0.8443328]
[1728403381035,7.0206,142.44,142.39,7.8669328]
[1728403381317,7.0219,142.41,142.39,0.8443328]
[1728403381612,7.0215,142.42,142.39,0.8443328]
[1728403381993,7.0213,142.43,142.39,0.8443328]
[1728403382193,1.39908322,142.42,142.39,0.8443328]
[1728403382496,1.39908322,142.45,142.39,0.8443328]
[1728403382693,7.021,142.43,142.39,7.8672328]
[1728403382904,7.0224,142.4,142.39,0.8443328]
[1728403383991,8.42148322,142.4,142.39,0.8443328]
[1728403384213,8.54697322,142.4,142.39,0.8443328]
[1728403384590,1.39908322,142.43,142.39,0.8443328]
[1728403384813,7.0224,142.4,142.39,0.8443328]
[1728403385113,7.0221,142.41,142.39,0.8443328]
[1728403385530,1.39908322,142.43,142.39,7.8668328]
[1728403385817,1.39908322,142.46,142.39,0.8443328]
[1728403386003,7.0221,142.41,142.39,0.8443328]
[1728403386196,8.42148322,142.4,142.39,0.8443328]
[1728403387296,8.54697322,142.4,142.39,0.8443328]
[1728403387609,8.42148322,142.4,142.39,0.8443328]
[1728403390589,7.0221,142.41,142.39,0.8443328]
[1728403390794,8.42068322,142.42,142.39,0.8443328]
[1728403391013,7.0216,142.42,142.39,0.8443328]
[1728403391209,1.39908322,142.45,142.39,0.8443328]
[1728403391610,7.0205,142.44,142.39,0.8443328]
[1728403392324,7.0205,142.44,142.4,30.85763969]
[1728403393031,7.0218,142.42,142.4,22.431]
[1728403393189,1.39908322,142.45,142.4,22.431]
[1728403394090,7.0215,142.42,142.4,22.431]
[1728403395593,7.0219,142.41,142.4,22.431]
[1728403395916,7.022,142.41,142.39,0.8443328]
[1728403396119,7.0215,142.42,142.39,0.8443328]
[1728403396623,1.39908322,142.45,142.39,0.8443328]
[1728403396624,7.0223,142.41,142.39,0.8443328]
[1728403398616,1.39908322,142.46,142.4,0.12549]
[1728403398823,7.0201,142.45,142.41,7.0219]
[1728403399291,7.0196,142.46,142.42,7.0214]
[1728403399495,7.0201,142.45,142.41,24.5766]
[1728403400610,7.021,142.43,142.4,0.12549]
[1728403400809,7.0206,142.44,142.4,7.27338]
[1728403401824,1.39908322,142.47,142.4,0.25098]
[1728403402028,1.39908322,142.47,142.42,16.3533]
[1728403402195,7.0191,142.47,142.44,7.0204]
[1728403402398,7.0191,142.47,142.44,8.42425147]
[1728403404323,7.0187,142.48,142.44,7.0204]
[1728403404521,7.0181,142.49,142.45,8.42350542]
[1728403404820,7.0189,142.48,142.44,24.571]
[1728403405324,1.39908322,142.5,142.44,24.571]
[1728403405505,7.019,142.47,142.43,7.0209]
[1728403406101,1.39908322,142.5,142.42,16.3533]
[1728403406301,7.0196,142.46,142.42,23.3746]
[1728403407031,1.39908322,142.48,142.42,16.3533]
[1728403407413,7.0198,142.46,142.42,23.3746]
[1728403408831,1.39908322,142.48,142.42,23.3746]
[1728403409127,7.0201,142.45,142.42,16.3533]
[1728403411061,7.0196,142.46,142.42,23.3747]
[1728403412423,7.0208,142.44,142.42,16.3533]
[1728403412635,7.0209,142.43,142.42,16.3533]
[1728403412825,7.0224,142.4,142.39,0.8443328]
[1728403413699,7.0222,142.41,142.39,0.8443328]
[1728403414024,3.37950616,142.48,142.39,0.8443328]
[1728403414025,7.0224,142.4,142.39,0.8443328]
[1728403417829,7.022,142.41,142.39,0.8443328]
[1728403418235,7.0224,142.4,142.39,0.8443328]
[1728403422634,7.0254,142.34,142.33,6.3397]
[1728403423127,1.39908322,142.37,142.33,6.3397]
[1728403423128,7.025,142.35,142.33,6.3397]
[1728403424507,1.39908322,142.37,142.33,6.3397]
[1728403425131,7.0249,142.35,142.33,6.3397]
[1728403426072,1.39908322,142.34,142.32,15.7223]
[1728403426208,17.5616,142.36,142.29,6.5544]
[1728403426527,7.0262,142.33,142.29,13.5822]
[1728403428225,1.39908322,142.35,142.29,6.5544]
[1728403429210,1.39908322,142.35,142.28,15.4669]
[1728403429211,7.0279,142.29,142.28,15.4669]
[1728403429539,7.0285,142.28,142.25,7.3191328]
[1728403429724,1.39908322,142.31,142.25,7.3191328]
[1728403429925,7.0267,142.32,142.28,7.0281]
[1728403430118,1.39908322,142.34,142.26,18.97883047]
[1728403430119,7.0269,142.31,142.27,7.0287]
[1728403430431,7.0269,142.31,142.26,17.5732]
[1728403430432,7.0274,142.3,142.26,24.6023]
[1728403430639,1.39908322,142.34,142.25,7.3191328]
[1728403430640,7.0281,142.29,142.25,7.3191328]
[1728403431414,7.0293,142.26,142.25,0.8443328]
[1728403433041,7.0293,142.26,142.17,23.2478]
[1728403433042,7.0323,142.21,142.17,23.2478]
[1728403433574,1.39908322,142.25,142.17,23.2478]
[1728403433721,7.0319,142.21,142.17,23.2478]
[1728403436129,7.0314,142.22,142.17,17.5836]
[1728403436327,7.0314,142.22,142.18,7.0333]
[1728403437047,7.0314,142.22,142.17,24.6173]
[1728403437235,7.032,142.21,142.17,17.5836]
[1728403438235,7.032,142.21,142.17,24.6173]
[1728403438628,7.0331,142.19,142.14,24.6228]
[1728403439029,17.5781,142.23,142.14,24.6228]
[1728403439229,7.0319,142.21,142.16,7.034]
[1728403439454,7.0319,142.21,142.17,7.0337]
[1728403439754,7.0319,142.21,142.16,7.0342]
[1728403439962,7.0319,142.21,142.14,17.5876]
[1728403440261,7.0319,142.21,142.17,7.0337]
[1728403440543,1.39908322,142.25,142.16,17.5851]
[1728403440759,7.0323,142.2,142.16,17.5851]
[1728403441082,7.0334,142.18,142.14,7.0352]
[1728403441264,7.0326,142.2,142.15,7.0344]
[1728403441552,17.5789,142.22,142.13,17.589]
[1728403441852,7.0326,142.2,142.15,24.6212]
[1728403442947,17.5778,142.23,142.15,17.5865]
[1728403443247,0.12549,142.25,142.12,38.9834]
[1728403443248,7.0339,142.17,142.12,38.9834]
[1728403443852,7.0339,142.17,142.13,1.40687284]
[1728403444063,7.0339,142.17,142.12,38.9834]
[1728403444233,7.0354,142.14,142.12,21.3934]
[1728403444555,7.0339,142.17,142.12,28.4292]
[1728403444757,7.0351,142.15,142.12,21.3934]
[1728403444969,1.39908322,142.18,142.12,21.3934]
[1728403445262,17.5786,142.22,142.14,24.623]
[1728403445452,17.5786,142.22,142.13,7.0356]
[1728403445453,7.0339,142.17,142.13,7.0356]
[1728403445658,7.0339,142.17,142.11,18.4355328]
[1728403445659,1.39908322,142.16,142.11,0.8443328]
[1728403445960,35.1545,142.23,142.1,0.38852071]
[1728403445961,7.0368,142.11,142.1,0.38852071]
[1728403446133,8.43588322,142.11,142.1,0.38852071]
[1728403446660,1.39908322,142.11,142.01,22.0924]
[1728403446867,7.0399,142.05,142.01,29.134]
[1728403447038,1.39908322,142.08,142.01,22.0924]
[1728403447547,7.0403,142.04,142.01,22.0924]
[1728403447866,7.0398,142.05,142.01,22.0924]
[1728403448036,7.0398,142.05,142.0,7.0422]
[1728403448365,35.1842,142.11,141.97,22.5244328]
[1728403448366,7.0411,142.03,141.97,22.5244328]
[1728403448589,1.39908322,142.02,141.97,29.5681328]
[1728403448744,7.0417,142.02,141.97,29.5681328]
[1728403448944,7.0408,142.03,141.98,7.0432]
[1728403449656,1.39908322,142.06,141.97,22.5244328]
[1728403449848,7.0393,142.06,142.01,7.0417]
[1728403450157,1.39908322,142.09,142.03,7.0407]
[1728403450460,7.0372,142.11,142.05,7.0397]
[1728403450782,1.39908322,142.1,142.05,17.5986]
[1728403450936,7.0378,142.09,142.05,24.6383]
[1728403451460,7.0378,142.09,142.05,17.5986]
[1728403452468,7.0374,142.1,142.05,30.7177]
[1728403452767,1.39908322,142.13,142.06,7.0391]
[1728403453063,1.39908322,142.13,142.05,23.6783]
[1728403453268,7.0378,142.09,142.05,23.6783]
[1728403453570,1.39908322,142.12,142.05,30.7177]
[1728403453741,7.0374,142.1,142.05,30.7177]
[1728403453942,1.39908322,142.09,142.05,30.7177]
[1728403454358,1.39908322,142.09,142.03,7.0406]
[1728403454569,7.0388,142.07,142.03,7.0406]
[1728403454744,17.5929,142.11,142.02,17.6024]
[1728403454945,7.0388,142.07,142.03,7.0403]
[1728403455249,7.0398,142.05,142.0,6.1834]
[1728403455565,7.0409,142.03,142.0,6.1834]
[1728403455773,1.39908322,142.04,141.97,15.8846328]
[1728403456104,7.0409,142.03,141.98,7.0432]
[1728403457047,7.0409,142.03,141.97,33.4934328]
[1728403457243,17.5974,142.07,141.97,33.4934328]
[1728403457244,1.39908322,142.02,141.97,40.5367328]
[1728403457557,7.0413,142.02,141.97,40.5367328]
[1728403457756,1.39908322,142.01,141.97,15.8846328]
[1728403457956,17.6008,142.04,141.97,15.8846328]
[1728403458169,1.39908322,142.03,141.97,15.8846328]
[1728403458366,7.0421,142.01,141.97,15.8846328]
[1728403458561,7.0415,142.02,141.97,40.5372328]
[1728403458945,7.0421,142.01,141.97,33.4936328]
[1728403459151,1.39908322,142.03,141.97,40.5371328]
[1728403459348,17.5988,142.06,141.97,33.4936328]
[1728403459548,7.0416,142.02,141.97,40.5369328]
[1728403460056,7.0418,142.01,141.97,22.9283328]
[1728403460256,1.39908322,142.05,141.97,15.8846328]
[1728403460452,7.0408,142.03,141.99,7.0424]
[1728403461054,1.39908322,142.05,141.99,1.40830468]
[1728403461369,7.0402,142.04,142.0,24.6472]
[1728403461584,1.39908322,142.08,142.0,24.6472]
[1728403461752,7.0404,142.04,142.0,24.6472]
[1728403462368,7.0393,142.06,142.02,7.0412]
[1728403462673,7.0403,142.04,142.0,17.6051]
[1728403463058,7.0408,142.03,141.99,7.0422]
[1728403464173,1.39908322,142.02,141.98,7.0428]
[1728403464480,7.0418,142.01,141.97,40.5368328]
[1728403464652,7.0423,142.0,141.97,33.4931328]
[1728403465274,8.44178322,141.99,141.97,15.8846328]
[1728403465482,1.39908322,141.99,141.97,0.8443328]
[1728403465659,17.6021,142.03,141.97,0.8443328]
[1728403465660,7.0432,141.98,141.97,0.8443328]
[1728403466165,7.0428,141.99,141.97,0.8443328]